Cogmind - Beta 10.2 @@@ ROGUE MODE // 2021.11.14 @ 16:26:22 Player: Phaethon Result: Destroyed by H-88 Terminator with KE Penetrator Performance ------------- Evolutions (8) 4000 Regions Visited (30) 6000 Robots Destroyed (227) 1135 Value Destroyed (9258) 9258 Prototype IDs (87) 1740 Alien Tech Used (2) 400 Bonus (9896) 9896 TOTAL SCORE: 32429 Bonus ------- High Alert Combat Kills 852 Follower Combat Kills 2483 Network Hubs Disabled 200 Aligned with FarCom 300 Met Data Miner 300 Met Imprinter 300 Was Imprinted 300 Destroyed Z-Imprinter 1000 Met Zhirov 300 Built Enhanced Grunts 300 A7 Reached Mainframe 300 Met R17 at Cetus 500 Read Decrypted Archives 300 Found Hidden Lab 3000 Pursued by Intercept 500 Friendly Fire -1039 Cogmind --------- Core Integrity 0/1450 Matter 264/300 Energy 9/100 System Corruption 18% Temperature Cool (1) Movement Flying (40) Location -2/Research Parts ------- > --- POWER (2) -------- (None) > --- PROPULSION (6) --- Xenon Bombardment Thruster > --- UTILITY (11) ----- Advanced Signal Interpreter Experimental Hacking Suite Quantum Router > --- WEAPON (4) ------- Heavy Pick > --- INVENTORY (4) ---- Transdimensional Reconstructor Core Regenerator Integrated Reactor Core Reset Matrix Peak State ------------ > --- POWER ------------ Light Particle Reactor Light Particle Reactor > --- PROPULSION ------- Cooled Gravmag System Cooled Gravmag System Cooled Gravmag System Cooled Gravmag System Antigrav Array > --- UTILITY ---------- High-capacity Storage Unit High-capacity Storage Unit Experimental Energy Well Inertial Stasis Machine Advanced Signal Interpreter Experimental Transmission Jammer Advanced Phase Shifter Zionite Weapon Casing Centrium Medium Armor Plating AEGIS Remote Shield Advanced Hacking Suite > --- WEAPON ----------- Hypervelocity EM Gauss Rifle Guided Remote Datajack Heavy Pick Heavy Pick > --- INVENTORY -------- Light Particle Reactor Cooled Gravmag System Cooled Gravmag System Zionite Metafield Generator Experimental Sensor Array Advanced Cloaking Device Experimental Hacking Suite Quantum Router System Restoration Module Transdimensional Reconstructor Core Regenerator Integrated Reactor Core Reset Matrix Warp Cannon XL Autogun Array [Rating: 176] Favorites ----------- Power Zionite Light DM Reactor Engine Makeshift Power Source Power Core Light Nuclear Core Reactor Zionite Light DM Reactor Propulsion Armored Wheel Wheel Armored Wheel Hover Unit Cooled Gravmag System Flight Unit Xenon Bombardment Thruster Utility High-capacity Storage Unit Device Experimental Sensor Array Storage High-capacity Storage Unit Processor Advanced Signal Interpreter Hackware Advanced Hacking Suite Protection Centrium Medium Armor Plating Weapon Heavy EM Shotgun Energy Gun Heavy EM Shotgun Energy Cannon Phase Cannon Ballistic Gun Heavy Machine Gun Ballistic Cannon Gauss Cannon Launcher Proton Missile Launcher Special Weapon Guided Remote Datajack Slashing Weapon Power Sword Piercing Weapon Heavy Pick Build | -11 -10 -10 -10 -9 -8 -7 -7 -7 -7 -6 -6 -6 -6 -6 -6 -5 -5 -5 -5 -5 -5 -4 -4 -4 -4 -3 -3 -3 -3 -2 ------- Run | Scr Mat Min Exi Min Mat Fac Low Low Dat Pro Fac Low Low Zio Dee Pro Fac Ext Cet Arc Hub Fac Upp Upp Zhi Pro Res Arm Lab Res Slots Evolved 16 | . . . . . 4 2 . . . . 2 . . . . . 2 . . . . 2 . . . . 2 . . 2 Power 1 | . . . . . . . . . . . . . . . . . 1 . . . . . . . . . . . . . Propulsion 4 | . . . . . 1 1 . . . . 1 . . . . . 1 . . . . . . . . . . . . . Utility 9 | . . . . . 3 1 . . . . 1 . . . . . . . . . . 2 . . . . . . . 2 Weapon 2 | . . . . . . . . . . . . . . . . . . . . . . . . . . . 2 . . . Parts Attached 445 | 6 14 5 2 7 29 65 11 8 2 5 13 7 . 6 48 1 20 4 6 4 5 45 1 2 11 . 47 25 14 32 Power 40 | 1 3 . . 1 4 8 . 1 . . . 1 . . 4 . 2 . . . 1 . . . 1 . 6 2 1 4 Engine 11 | 1 3 . . . 1 3 . 1 . . . 1 . . 1 . . . . . . . . . . . . . . . Core 9 | . . . . 1 3 5 . . . . . . . . . . . . . . . . . . . . . . . . Reactor 20 | . . . . . . . . . . . . . . . 3 . 2 . . . 1 . . . 1 . 6 2 1 4 Propulsion 102 | 2 1 2 . 1 9 16 . . . . 6 1 . . 8 . 9 . . 2 . 14 . . 4 . 13 7 1 6 Treads . | . . . . . . . . . . . . . . . . . . . . . . . . . . . . . . . Leg . | . . . . . . . . . . . . . . . . . . . . . . . . . . . . . . . Wheel 38 | 2 1 2 . 1 9 16 . . . . 6 1 . . . . . . . . . . . . . . . . . . Hover 63 | . . . . . . . . . . . . . . . 8 . 9 . . 2 . 14 . . 4 . 13 7 1 5 Flight 1 | . . . . . . . . . . . . . . . . . . . . . . . . . . . . . . 1 Utility 173 | 1 5 1 1 . 7 18 4 2 . 3 3 2 . 2 25 . 4 . 2 1 2 27 1 1 6 . 18 12 8 17 Device 93 | . 1 . . . 3 5 2 . . 2 1 1 . 1 14 . 1 . 1 1 1 16 1 1 4 . 14 9 4 10 Storage 18 | 1 2 1 1 . 1 3 . . . . . . . . 2 . 1 . . . . 1 . . 1 . 1 . 1 2 Processor 7 | . 1 . . . . 1 . . . . . . . 1 . . 1 . . . . 1 . . . . 1 . . 1 Hackware 5 | . . . . . . 1 . . . . . . . . . . . . . . . 2 . . . . . . . 2 Protection 50 | . 1 . . . 3 8 2 2 . 1 2 1 . . 9 . 1 . 1 . 1 7 . . 1 . 2 3 3 2 Artifact . | . . . . . . . . . . . . . . . . . . . . . . . . . . . . . . . Weapon 130 | 2 5 2 1 5 9 23 7 5 2 2 4 3 . 4 11 1 5 4 4 1 2 4 . 1 . . 10 4 4 5 Energy Gun 55 | 1 5 1 . 4 9 13 3 1 . . 1 . . . 8 . 1 . 1 . 1 3 . . . . . . 2 1 Energy Cannon 22 | . . . . . . 8 1 . . . 3 . . 2 2 . 2 2 . . . . . . . . . 1 1 . Ballistic Gun 20 | 1 . . . . . . 2 1 1 . . 2 . 2 . . . 1 3 . 1 . . 1 . . 4 . . 1 Ballistic Cannon 8 | . . . 1 . . 1 . 2 1 1 . . . . . . . . . . . . . . . . 2 . . . Launcher 9 | . . 1 . 1 . 1 1 1 . 1 . 1 . . 1 . . 1 . . . . . . . . . . . . Special Weapon 1 | . . . . . . . . . . . . . . . . . . . . . . . . . . . . . 1 . Impact Weapon . | . . . . . . . . . . . . . . . . . . . . . . . . . . . . . . . Slashing Weapon 8 | . . . . . . . . . . . . . . . . 1 2 . . 1 . 1 . . . . 3 . . . Piercing Weapon 7 | . . . . . . . . . . . . . . . . . . . . . . . . . . . 1 3 . 3 Special Melee Weapon . | . . . . . . . . . . . . . . . . . . . . . . . . . . . . . . . Unidentified Prototypes 45 | . . . . . 4 3 . . . . 1 1 . 1 11 . . . 4 . . 1 . . 4 . 3 1 7 4 Parts Lost 87 | . 4 . . . 4 12 . 1 . . . 3 . . 6 . 3 . . 2 1 4 . . . . 13 1 3 30 Power 13 | . . . . . . 1 . . . . . 1 . . 1 . . . . . 1 . . . . . 3 1 1 4 Propulsion 27 | . . . . . . 5 . . . . . 1 . . 3 . 1 . . 2 . 2 . . . . 3 . . 10 Utility 23 | . 1 . . . . 1 . . . . . . . . 2 . . . . . . 1 . . . . 4 . 2 12 Weapon 24 | . 3 . . . 4 5 . 1 . . . 1 . . . . 2 . . . . 1 . . . . 3 . . 4 Highest Loss Streak 17 | . 2 . . . 2 3 . 1 . . . 3 . . 4 . 2 . . 2 1 2 . . . . 4 1 2 17 Average Slot Usage (%) 94 | . 97 100 100 100 89 93 100 100 85 100 99 100 100 93 98 100 96 98 100 98 99 99 94 99 99 100 85 87 90 73 Engine 2 | . 14 14 14 3 1 1 . 6 7 7 6 6 6 6 1 . . . . . . . . . . . . . . . Core 1 | . . . . 10 7 5 7 . . . . . . . . . . . . . . . . . . . . . . . Reactor 4 | . . . . . . . . . . . . . . . 4 6 11 11 11 11 10 10 10 10 10 10 8 8 7 5 Wheel 14 | . 28 28 28 28 26 25 30 30 30 30 32 33 33 33 7 . . . . . . . . . . . . . . . Hover 15 | . . . . . . . . . . . . . . . 24 33 35 35 35 33 35 30 31 31 31 31 24 28 27 17 Device 12 | . 4 . . . 8 6 14 8 7 14 12 16 20 13 16 20 17 17 12 17 16 15 15 15 13 15 14 18 15 14 Storage 15 | . 18 28 28 28 18 21 23 23 23 23 20 20 20 20 14 13 11 11 11 11 11 10 15 15 12 10 9 9 9 9 Processor 2 | . . . . . . . . . . . . . . . 1 . 4 5 5 5 5 5 5 5 5 5 4 4 4 4 Hackware 1 | . . . . . . 1 . . . . . . . . . . . . . . . 4 5 5 5 5 4 4 4 3 Protection 7 | . 2 . . . 9 11 7 13 15 7 13 9 6 6 13 13 5 5 9 5 5 9 5 5 8 10 7 4 7 2 Energy Gun 5 | . 26 27 26 27 17 9 11 4 . . . . . . 7 6 1 . 3 5 4 3 . . . . . . 1 2 Energy Cannon 1 | . . . . . . 5 . . . . 8 10 . . 2 1 . 1 1 . . . . . . . . . . . Ballistic Gun 2 | . . . . . . . 2 5 . 7 . 2 13 12 1 . . 2 2 . . 1 . 4 5 5 2 . . . Slashing Weapon 1 | . . . . . . . . . . . . . . . . 4 6 5 3 4 5 5 5 5 5 5 5 . . . Naked Turns . | . . . . . . . . . . . . . . . . . . . . . . . . . . . . . . . Heaviest Build 142 | 11 42 42 59 57 136 142 139 133 129 129 135 135 123 125 125 90 99 100 105 106 104 108 98 104 109 109 117 109 116 138 Greatest Support 150 | 32 32 32 26 26 42 52 48 48 48 48 64 64 64 64 100 93 112 112 112 123 123 125 106 106 110 110 128 150 120 144 Greatest Overweight (x) 4 | . 1 1 2 2 3 4 2 2 2 2 2 2 1 1 3 1 1 . . . . 1 . . 1 . 1 1 . 2 Average Overweight (x) . | . . 1 1 2 2 2 2 2 2 2 2 1 1 1 . . . . . . . . . . . . . . . . Largest Inventory Capacity 54 | 6 16 16 18 18 38 54 28 28 28 28 28 28 28 28 28 20 20 20 20 20 20 20 20 20 20 20 20 20 20 20 Average Capacity 22 | 5 10 16 17 18 31 28 28 28 28 28 28 28 28 28 20 20 20 20 20 20 20 20 20 20 20 20 20 20 20 19 Most Carried 32 | 4 14 16 18 18 32 32 28 28 28 28 28 28 26 28 28 20 20 20 20 20 20 20 20 20 20 20 20 20 20 20 Average Carried 22 | 1 8 15 17 17 29 28 27 27 28 28 27 27 26 27 20 20 19 19 19 19 19 19 19 19 19 19 19 18 17 17 Final Capacity 32 | 6 16 16 18 18 32 28 28 28 28 28 28 28 28 28 20 20 20 20 20 20 20 20 20 20 20 20 20 20 20 4 Final Carried 32 | 4 14 16 18 18 32 28 28 28 28 28 28 26 26 28 20 20 19 20 20 19 20 20 20 20 20 20 20 18 20 4 Class Distribution -------------------- 66% | Hauler-Mutant 18% | Scavenger-Mutant 8% | Mutant Dominant Class ---------------- Mutant | -10/Materials Mutant | -10/Mines Mutant | -10/Exiles Mutant | -9/Mines Hauler-Mutant | -8/Materials Hauler-Mutant | -7/Factory Hauler-Mutant | -7/Lower Caves Hauler-Mutant | -7/Lower Caves Hauler-Mutant | -7/Data Miner Hauler-Mutant | -6/Proximity Caves Hauler-Mutant | -6/Factory Hauler-Mutant | -6/Lower Caves Hauler-Mutant | -6/Lower Caves Hauler-Mutant | -6/Zion Hauler-Mutant | -6/Deep Caves Hauler-Mutant | -5/Proximity Caves Hauler-Mutant | -5/Factory Scavenger-Mutant | -5/Extension Commander-Mutant | -5/Cetus Commander-Mutant | -5/Archives Scavenger-Mutant | -5/Hub_04(d) Scavenger-Mutant | -4/Factory Hauler-Mutant | -4/Upper Caves Scavenger-Mutant | -4/Upper Caves Scavenger-Mutant | -4/Zhirov Hauler-Mutant | -3/Proximity Caves Hauler-Mutant | -3/Research Hauler-Mutant | -3/Armory Hauler-Sprinter | -3/Lab Hauler-Mutant | -2/Research Resources | -11 -10 -10 -10 -9 -8 -7 -7 -7 -7 -6 -6 -6 -6 -6 -6 -5 -5 -5 -5 -5 -5 -4 -4 -4 -4 -3 -3 -3 -3 -2 ----------- Run | Scr Mat Min Exi Min Mat Fac Low Low Dat Pro Fac Low Low Zio Dee Pro Fac Ext Cet Arc Hub Fac Upp Upp Zhi Pro Res Arm Lab Res Matter Collected 5839 | 224 166 60 . 122 291 599 250 202 . 117 178 135 32 159 565 10 . 259 64 . 67 405 42 33 146 . 376 427 75 835 Remotely . | . . . . . . . . . . . . . . . . . . . . . . . . . . . . . . . Salvage Created 11086 | . 682 270 . 215 1444 2088 300 220 . 79 248 444 58 240 371 . . 320 39 31 380 384 . 304 288 . 1136 321 75 1149 Parts 558 | . 41 15 . 19 71 111 15 10 . 8 10 13 1 11 28 . . 17 2 1 17 17 . 4 4 . 70 22 7 44 Haulers Intercepted 5 | . 2 . . . 2 . . . . . 1 . . . . . . . . . . . . . . . . . . . Recyclers Shooed 6 | . 1 . . . 4 . . . . . . . . . . . . . . . . . . . . . 1 . . . Parts Field Recycled . | . . . . . . . . . . . . . . . . . . . . . . . . . . . . . . . Retrieved Matter . | . . . . . . . . . . . . . . . . . . . . . . . . . . . . . . . Parts Self-Destructed 53 | . . . . . . . 9 7 . 13 . 11 5 4 . . . . . . . . . 1 3 . . . . . Prevented 6 | . . . . . . . 3 2 . . . . 1 . . . . . . . . . . . . . . . . . Kills | -11 -10 -10 -10 -9 -8 -7 -7 -7 -7 -6 -6 -6 -6 -6 -6 -5 -5 -5 -5 -5 -5 -4 -4 -4 -4 -3 -3 -3 -3 -2 ------- Run | Scr Mat Min Exi Min Mat Fac Low Low Dat Pro Fac Low Low Zio Dee Pro Fac Ext Cet Arc Hub Fac Upp Upp Zhi Pro Res Arm Lab Res Combat Hostiles Destroyed 177 | . 10 7 . 7 22 34 8 7 . 5 5 11 1 . 5 . . 5 . . 6 4 . . . . 16 6 1 17 Melee 33 | . . . . . . . . . . . . . . . . . . . . . 2 4 . . . . 13 6 1 7 Guns 69 | . 7 4 . 3 18 14 4 2 . 1 . 1 1 . 2 . . . . . . . . . . . 2 . . 10 Cannons 16 | . . . . . . 4 . 2 . 1 5 4 . . . . . . . . . . . . . . . . . . AOE 46 | . 2 3 . 4 . 11 3 2 . 3 . 6 . . 3 . . 5 . . 4 . . . . . . . . . Classes Destroyed 16 | . 4 3 . 1 4 2 . . . . . . . 1 1 . . . . . . . . . . . . . . . Worker 12 | . 1 . . . 4 5 . . . . . . . . . . . . . . 1 . . . . . 1 . . . Builder 7 | . . 1 . 1 1 3 . . . . . . . . . . . 1 . . . . . . . . . . . . Tunneler 1 | . . . . 1 . . . . . . . . . . . . . . . . . . . . . . . . . . Hauler 5 | . 2 . . . 2 . . . . . 1 . . . . . . . . . . . . . . . . . . . Recycler 9 | . . 1 . . 1 2 . . . . . . . . . . . 2 . . 1 1 . . . . 1 . . . Mechanic 1 | . . . . . . 1 . . . . . . . . . . . . . . . . . . . . . . . . Watcher 12 | . 3 . . . 1 5 . . . . . . . . . . . . 1 . . . . . . . 1 1 . . Swarmer 53 | . . 4 . 4 2 7 . 4 . 5 4 2 . . . . . 5 . . 4 . . . . . 4 3 . 5 Grunt 59 | . 10 3 . 3 13 13 6 2 . . . 4 . . . . . . . . . . . . . . . . . 5 Brawler 7 | . . . . . 1 3 . . . . . 3 . . . . . . . . . . . . . . . . . . Duelist 5 | . . . . . 1 2 1 . . . . 1 . . . . . . . . . . . . . . . . . . Sentry 17 | . . . . . 4 7 1 1 . . . 1 1 . . . . . . . . 1 . . . . 1 . . . Hunter 5 | . . . . . 1 1 . . . . 1 . . . . . . . . . . . . . . . . . . 2 Programmer 22 | . . . . . . 1 . . . . . . . . . . . . . . 2 3 . . . . 11 3 . 2 Tracker 2 | . . . . . . . . . . . . . . . . . . . . . . . . . . . . . . 2 Combat Programmer 1 | . . . . . . . . . . . . . . . . . . . . . . . . . . . . . . 1 Z-Light 4 | . . . . . . . . . . . . . . . 4 . . . . . . . . . . . . . . . Mutant 3 | . . . . . . . . . . . . . . 3 . . . . . . . . . . . . . . . . Best Kill Streak 9 | . 5 3 . 8 7 9 5 4 . 3 2 8 1 . 3 . . 5 1 . 6 3 . . . . 5 2 1 8 Combat Bots Only 8 | . 2 3 . 6 5 6 5 4 . 3 2 8 1 . 3 . . 5 . . 4 2 . . . . 4 2 1 8 Max Kills in Single Turn 6 | . 1 3 . 2 2 6 2 2 . 3 1 3 1 1 2 . . 3 1 . 5 1 . . . . 1 1 1 1 Gunslinging . | . . . . . . . . . . . . . . . . . . . . . . . . . . . . . . . Exploded 4 | . 1 3 . 2 . 3 2 2 . 3 . 2 . . 2 . . 3 . . 4 . . . . . . . . . Melee 1 | . . . . . . . . . . . . . . . . . . . . . 1 1 . . . . 1 1 1 1 Uniques/NPCs Destroyed 2 | . . . . . . . . . . . . . . . 1 . . . . . . . . . . . . . 1 . Z-Imprinter (-6/Deep Caves) A5 (-3/Lab) Combat | -11 -10 -10 -10 -9 -8 -7 -7 -7 -7 -6 -6 -6 -6 -6 -6 -5 -5 -5 -5 -5 -5 -4 -4 -4 -4 -3 -3 -3 -3 -2 -------- Run | Scr Mat Min Exi Min Mat Fac Low Low Dat Pro Fac Low Low Zio Dee Pro Fac Ext Cet Arc Hub Fac Upp Upp Zhi Pro Res Arm Lab Res Damage Taken 18486 | . 430 95 . 147 1265 3072 385 381 . 89 90 307 22 . 1370 . 291 179 11 240 361 976 . . . 369 2321 524 957 4604 Core 3158 | . 35 53 . 30 147 344 85 32 . 29 . 24 . . 176 . 46 49 . 96 20 136 . . . 10 166 68 154 1458 Absorbed by Shields 645 | . . . . . . . . . . . . . . . . . . 99 10 . . . . . . . . . . 536 Core Remaining (%) 70 | 100 . . . 52 73 . . . . 30 . . . . . 76 . . . . 78 . . . . 87 . . 64 . Volleys Fired 466 | . 39 21 1 12 88 95 18 14 . 4 21 16 4 22 23 . 5 19 6 2 4 6 . 4 . . 8 1 . 33 Largest 2 | . 2 2 1 2 2 2 2 2 . 2 2 2 2 2 2 . 1 1 1 1 1 1 . 1 . . 1 1 . 1 Hottest 240 | . 85 80 39 80 122 160 100 105 . 76 180 180 60 120 123 . 90 94 240 35 240 80 . 35 . . 66 94 . 60 Shots Fired 801 | . 75 41 1 24 173 181 33 23 . 7 39 28 8 42 37 . 5 19 6 2 6 6 . 4 . . 7 1 . 33 Gun 580 | . 75 40 . 20 173 115 24 15 . 3 . 6 8 20 15 . 3 5 2 2 6 6 . 4 . . 5 . . 33 Cannon 194 | . . . 1 2 . 64 4 5 . 3 39 18 . 22 14 . 2 13 4 . . . . . . . 2 1 . . Launcher 27 | . . 1 . 2 . 2 5 3 . 1 . 4 . . 8 . . 1 . . . . . . . . . . . . Special . | . . . . . . . . . . . . . . . . . . . . . . . . . . . . . . . Kinetic 145 | . . . 1 2 . . 15 12 . 6 8 6 8 20 15 . . 5 1 2 1 . . 4 . . 7 . . 32 Thermal 298 | . . . . . 127 64 4 . . . 31 18 . 22 14 . 2 . 5 . 5 6 . . . . . . . . Explosive 19 | . . 1 . 2 . 2 5 3 . 1 . 4 . . . . . 1 . . . . . . . . . . . . Electromagnetic 336 | . 75 40 . 20 46 115 9 8 . . . . . . 8 . . 13 . . . . . . . . . 1 . 1 Phasic 3 | . . . . . . . . . . . . . . . . . 3 . . . . . . . . . . . . . Robot Hit Streak 20 | . 10 10 . 4 10 17 16 11 . 1 9 5 7 19 20 . . 3 5 . . . . . . . 10 . . 7 Robot Miss Streak 8 | . 2 2 . 3 7 4 5 8 . 8 2 2 2 1 7 . . 8 . . 1 . . . . . 1 . . 6 Penetration Max 1 | . . . . . . . . . . . . . . . . . . 1 . . . . . . . . . . . . Secondary Targets 5 | . . . . . 2 3 . . . . . . . . . . . . . . . . . . . . . . . . Max Gunslinging Chain 1 | . . . . . 1 1 . . . . . . . . . . . . . . . . . . . . . . . . Shots Hit Robots 730 | . 52 28 . 12 117 140 25 16 . 4 22 15 5 34 9 . . 14 5 4 10 17 . 8 8 . 71 20 25 69 Core Hits 438 | . 20 12 . 11 51 92 28 17 . 8 9 27 1 11 17 . . 14 2 1 12 6 . 4 3 . 30 10 7 45 Critical Hits 25 | . . . . . 1 3 . 1 . . 3 . . 6 3 . . . 1 . . . . 1 . . 1 2 1 2 Critical Kills 9 | . . . . . . 2 . 1 . . . . . 1 1 . . . 1 . . . . 1 . . 1 1 . . Critical Parts Destroyed 11 | . . . . . . . . . . . 2 . . 5 . . . . . . . . . . . . . 1 1 2 Melee Attacks 404 | . . . . . . . . . . . . . . . . 3 17 3 1 4 26 44 . 13 8 . 149 38 38 60 Impact . | . . . . . . . . . . . . . . . . . . . . . . . . . . . . . . . Slashing 265 | . . . . . . . . . . . . . . . . 3 17 3 1 4 26 44 . 13 8 . 146 . . . Piercing 139 | . . . . . . . . . . . . . . . . . . . . . . . . . . . 3 38 38 60 Sneak Attacks 5 | . . . . . . . . . . . . . . . . . . 1 . . . 1 . . . . 3 . . . Combat Hostiles . | . . . . . . . . . . . . . . . . . . . . . . . . . . . . . . . Follow-up Attacks 22 | . . . . . . . . . . . . . . . . . . . . . . . . . . . 9 3 6 4 Damage Inflicted 28792 | . 1071 473 . 445 2528 5129 1005 526 . 202 698 1197 152 613 767 . . 1186 147 548 1191 819 . 891 999 . 3375 634 1180 3016 Guns 8524 | . 853 321 . 184 2374 1565 425 259 . 25 . 87 152 106 45 . . 111 23 . 19 . . . . . 376 . . 1599 Cannons 3452 | . . . . 23 . 1167 . 60 . 31 698 274 . 507 187 . . 423 82 . . . . . . . . . . . Explosions 6754 | . 218 152 . 238 145 2375 580 207 . 146 . 836 . . 535 . . 503 . . 819 . . . . . . . . . Melee 10031 | . . . . . . . . . . . . . . . . . . 149 42 548 353 819 . 891 999 . 2999 634 1180 1417 Ramming 31 | . . . . . 9 22 . . . . . . . . . . . . . . . . . . . . . . . . Kinetic 3170 | . . . . 23 . . 293 214 . 56 86 87 152 106 45 . . 111 23 . . . . . . . 376 . . 1598 Thermal 6809 | . 218 41 . . 1754 2633 . 49 . . 612 274 . 507 353 . . 267 82 . 19 . . . . . . . . . Explosive 3214 | . . 111 . 238 . 909 580 158 . 146 . 836 . . . . . 236 . . . . . . . . . . . . Electromagnetic 5537 | . 853 321 . 184 765 1565 132 105 . . . . . . 369 . . 423 . . 819 . . . . . . . . 1 Impact . | . . . . . . . . . . . . . . . . . . . . . . . . . . . . . . . Slashing 6800 | . . . . . . . . . . . . . . . . . . 149 42 548 353 819 . 891 999 . 2999 . . . Piercing 3231 | . . . . . . . . . . . . . . . . . . . . . . . . . . . . 634 1180 1417 Highest Corruption 21 | . . . . . . 2 2 2 2 2 . . . . . . 2 2 2 2 6 2 . . . . 21 20 9 18 Average Corruption 5 | . . . . . . 1 2 2 2 2 . . . . . . 2 2 2 2 3 1 . . . . 7 10 6 6 Corruption Purged 26 | . . . . . . . . . . . . . . . . . . . . . . 2 . . . . 1 23 . . Effects 221 | . . . . . . 9 7 3 2 7 . . . . . . . 8 3 2 15 1 . . . . 72 85 3 4 Message Errors 51 | . . . . . . 4 3 1 1 2 . . . . . . . 2 1 1 7 . . . . . 11 17 1 . Matter Fused 27 | . . . . . . . . . . . . . . . . . . . . . 1 . . . . . 7 17 . 2 Heat Flow Errors 32 | . . . . . . 2 2 . 1 3 . . . . . . . 3 . . 1 . . . . . 8 12 . . Energy Discharges 31 | . . . . . . 2 1 2 . 1 . . . . . . . . 2 1 2 . . . . . 10 10 . . Parts Rejected 1 | . . . . . . . . . . . . . . . . . . . . . . . . . . . . . 1 . Data Loss (minor) 19 | . . . . . . . 1 . . 1 . . . . . . . 3 . . 1 1 . . . . 9 3 . . Data Loss (major) 6 | . . . . . . . . . . . . . . . . . . . . . . . . . . . 3 3 . . Misfires 2 | . . . . . . . . . . . . . . . . . . . . . 2 . . . . . . . . . Alerts 2 | . . . . . . . . . . . . . . . . . . . . . . . . . . . . 2 . . Misdirections 34 | . . . . . . . . . . . . . . . . . . . . . . . . . . . 16 18 . . Targeting Errors 15 | . . . . . . 1 . . . . . . . . . . . . . . 1 . . . . . 7 3 1 2 Weapon Failures 1 | . . . . . . . . . . . . . . . . . . . . . . . . . . . 1 . . . Overload Shots 16 | . . . . . . . . . . . . . . 3 7 . 2 . 1 . 3 . . . . . . . . . Effects 1 | . . . . . . . . . . . . . . . 1 . . . . . . . . . . . . . . . Short Circuit 1 | . . . . . . . . . . . . . . . 1 . . . . . . . . . . . . . . . Overflow Damage 1555 | . 27 . . 14 24 452 . . . . 19 29 . 14 . . . 50 . 284 72 8 . 319 18 . 151 15 59 . Projectiles 123 | . . . . . . 22 . . . . 19 29 . 14 . . . 39 . . . . . . . . . . . . Explosions 570 | . 27 . . 14 24 430 . . . . . . . . . . . 11 . . 64 . . . . . . . . . Melee 862 | . . . . . . . . . . . . . . . . . . . . 284 8 8 . 319 18 . 151 15 59 . Knockbacks 1 | . . . . 1 . . . . . . . . . . . . . . . . . . . . . . . . . . Impact . | . . . . . . . . . . . . . . . . . . . . . . . . . . . . . . . Kinetic 1 | . . . . 1 . . . . . . . . . . . . . . . . . . . . . . . . . . Secondary . | . . . . . . . . . . . . . . . . . . . . . . . . . . . . . . . Self-Inflicted Damage 923 | . 65 . . 45 67 525 12 33 . . . 75 . . . . . . . . 101 . . . . . . . . . Shots 23 | . 3 . . 2 2 10 1 1 . . . 3 . . . . . . . . 1 . . . . . . . . . Rammed 2 | . . . . . 1 1 . . . . . . . . . . . . . . . . . . . . . . . . Targets Rammed 2 | . . . . . 1 1 . . . . . . . . . . . . . . . . . . . . . . . . Kicked . | . . . . . . . . . . . . . . . . . . . . . . . . . . . . . . . Crushed . | . . . . . . . . . . . . . . . . . . . . . . . . . . . . . . . Highest Temperature 396 | . 223 161 . 72 234 260 206 3 151 216 156 205 . 16 100 . 69 292 200 . 396 301 38 88 7 131 203 268 . 142 Average Temperature 71 | . 70 52 . 24 62 31 78 2 85 109 61 116 . 12 44 . 32 144 93 . 173 90 2 5 1 79 74 96 . 55 Received Heat Transfer 2602 | . 204 48 . 24 495 729 162 102 . . 6 54 6 . 441 . 27 12 . . . 75 . . . 30 45 . . 142 Effects 4 | . . . . . 1 . . . . . . . . . . . . . . . 3 . . . . . . . . . Interference 4 | . . . . . 1 . . . . . . . . . . . . . . . 3 . . . . . . . . . Siege Activations . | . . . . . . . . . . . . . . . . . . . . . . . . . . . . . . . Robots Corrupted 11 | . 1 . . . 3 4 1 1 . . . . . . . . . . . . 1 . . . . . . . . . Combat Hostiles 10 | . 1 . . . 3 4 1 1 . . . . . . . . . . . . . . . . . . . . . . Parts Fried 34 | . 2 1 . 1 10 3 2 1 . . . . . . 9 . . . . . 5 . . . . . . . . . Impact Corruptions . | . . . . . . . . . . . . . . . . . . . . . . . . . . . . . . . Robots Melted 2 | . . . . . 1 1 . . . . . . . . . . . . . . . . . . . . . . . . Combat Hostiles 2 | . . . . . 1 1 . . . . . . . . . . . . . . . . . . . . . . . . Parts Melted 18 | . . . . . 5 4 . . . . 2 . . . . . . . . . 1 3 . . . . 2 1 . . Heat Transferred 9139 | . 200 50 . . 3345 3277 . 50 . . 816 333 . 703 167 . . 50 111 . 37 . . . . . . . . . Parts Sabotaged . | . . . . . . . . . . . . . . . . . . . . . . . . . . . . . . . Parts Stolen . | . . . . . . . . . . . . . . . . . . . . . . . . . . . . . . . Parts Stripped . | . . . . . . . . . . . . . . . . . . . . . . . . . . . . . . . Power Chain Reactions 20 | . 5 1 . . 2 9 . 1 . . . . . . 2 . . . . . . . . . . . . . . . Missiles Intercepted . | . . . . . . . . . . . . . . . . . . . . . . . . . . . . . . . Alert | -11 -10 -10 -10 -9 -8 -7 -7 -7 -7 -6 -6 -6 -6 -6 -6 -5 -5 -5 -5 -5 -5 -4 -4 -4 -4 -3 -3 -3 -3 -2 ------- Run | Scr Mat Min Exi Min Mat Fac Low Low Dat Pro Fac Low Low Zio Dee Pro Fac Ext Cet Arc Hub Fac Upp Upp Zhi Pro Res Arm Lab Res Peak Influence 1022 | . 260 335 . 210 509 1022 . . . . 549 . . . . . 107 778 458 424 721 811 . . . . 282 285 . 185 Initial 347 | . . 101 . . 81 196 . . . . 54 . . . . . 18 27 156 183 123 347 . . . . 141 100 . . Average 262 | . 91 214 . 192 267 642 . . . . 326 . . . . . 50 188 327 327 213 376 . . . . 144 76 . 69 Maximum Alert Level 3 | . 1 1 . 1 2 3 . . . . 2 . . . . . . 3 2 2 3 3 . . . . 1 1 . . Low Security (%) 49 | 100 91 46 . 23 24 . . . . . 35 . . . . . 100 66 8 22 73 . . . . . 66 84 . 100 Level 1 28 | . 8 53 . 76 69 8 . . . . 22 . . . . . . 20 63 47 20 69 . . . . 33 15 . . Level 2 15 | . . . . . 6 49 . . . . 42 . . . . . . 10 28 29 1 27 . . . . . . . . Level 3 7 | . . . . . . 40 . . . . . . . . . . . 2 . . 4 3 . . . . . . . . Level 4 . | . . . . . . . . . . . . . . . . . . . . . . . . . . . . . . . Level 5 . | . . . . . . . . . . . . . . . . . . . . . . . . . . . . . . . High Security . | . . . . . . . . . . . . . . . . . . . . . . . . . . . . . . . Max Security . | . . . . . . . . . . . . . . . . . . . . . . . . . . . . . . . Squads Dispatched 47 | . 4 . . 1 3 9 . . . . 4 . . . . . 2 4 . . 2 2 . . . 1 4 6 . 5 Investigation 12 | . 2 . . 1 1 2 . . . . . . . . . . 2 3 . . . . . . . . . 1 . . Extermination 15 | . . . . . . 1 . . . . 1 . . . . . . . . . 1 2 . . . . 4 5 . 1 Reinforcement 10 | . 2 . . . 2 1 . . . . 2 . . . . . . 1 . . 1 . . . . . . . . 1 Assault 3 | . . . . . . 1 . . . . 1 . . . . . . . . . . . . . . 1 . . . . Garrison 4 | . . . . . . 4 . . . . . . . . . . . . . . . . . . . . . . . . Intercept 3 | . . . . . . . . . . . . . . . . . . . . . . . . . . . . . . 3 Construction Impeded 2 | . . . . . . . . . . . 1 . . . . . . 1 . . . . . . . . . . . . Haulers Reinforced 1 | . . . . . . . . . . . 1 . . . . . . . . . . . . . . . . . . . Stealth | -11 -10 -10 -10 -9 -8 -7 -7 -7 -7 -6 -6 -6 -6 -6 -6 -5 -5 -5 -5 -5 -5 -4 -4 -4 -4 -3 -3 -3 -3 -2 --------- Run | Scr Mat Min Exi Min Mat Fac Low Low Dat Pro Fac Low Low Zio Dee Pro Fac Ext Cet Arc Hub Fac Upp Upp Zhi Pro Res Arm Lab Res Distress Signals 17 | . 1 . . . 3 . . . . . . . . . . . . 3 2 . 4 1 . . . . 1 1 . 1 Communications Jammed 54 | . . . . . . . . . . . . . . . . . . . . . . 14 . . . . 8 . . 32 Distress Signals 49 | . . . . . . . . . . . . . . . . . . . . . . 14 . . . . 8 . . 27 Times Spotted 354 | . 18 9 . 7 39 55 8 5 . 5 12 10 1 . 8 2 9 17 9 . 15 24 1 5 . 21 33 12 1 28 Peak Tracking Total 14 | . 3 3 9 4 5 5 6 2 . 3 4 7 1 . 4 2 3 5 5 . 5 14 1 5 . 13 4 3 1 11 Tactical Retreats 35 | . 2 3 . 1 4 5 . . . . . . . . . 1 3 1 . . 3 3 1 . . 4 . 2 . 2 Traps | -11 -10 -10 -10 -9 -8 -7 -7 -7 -7 -6 -6 -6 -6 -6 -6 -5 -5 -5 -5 -5 -5 -4 -4 -4 -4 -3 -3 -3 -3 -2 ------- Run | Scr Mat Min Exi Min Mat Fac Low Low Dat Pro Fac Low Low Zio Dee Pro Fac Ext Cet Arc Hub Fac Upp Upp Zhi Pro Res Arm Lab Res Traps Triggered 17 | . 1 . . . . 4 . . . . . . . . . . 6 1 . . 1 . . . . . 1 3 . . Indirectly 1 | . . . . . . . . . . . . . . . . . . . . . 1 . . . . . . . . . Trap Hack Attempts . | . . . . . . . . . . . . . . . . . . . . . . . . . . . . . . . Triggered . | . . . . . . . . . . . . . . . . . . . . . . . . . . . . . . . Disarmed . | . . . . . . . . . . . . . . . . . . . . . . . . . . . . . . . Reprogrammed . | . . . . . . . . . . . . . . . . . . . . . . . . . . . . . . . Reused . | . . . . . . . . . . . . . . . . . . . . . . . . . . . . . . . Traps Extracted . | . . . . . . . . . . . . . . . . . . . . . . . . . . . . . . . Installed . | . . . . . . . . . . . . . . . . . . . . . . . . . . . . . . . Triggered 6 | . . . . . . . 1 1 . . . . 2 . . . . . . . . . 2 . . . . . . . Machines | -11 -10 -10 -10 -9 -8 -7 -7 -7 -7 -6 -6 -6 -6 -6 -6 -5 -5 -5 -5 -5 -5 -4 -4 -4 -4 -3 -3 -3 -3 -2 ---------- Run | Scr Mat Min Exi Min Mat Fac Low Low Dat Pro Fac Low Low Zio Dee Pro Fac Ext Cet Arc Hub Fac Upp Upp Zhi Pro Res Arm Lab Res Machines Disabled 51 | . . 1 1 . . 12 . . . . 12 . . 3 3 . . 3 2 1 9 . . . . . . 3 1 . Max in Single Turn 9 | . . 1 1 . . 6 . . . . . . . 1 . . . 1 1 1 9 . . . . . . 1 1 . Garrison Access 7 | . . . . . . 3 . . . . . . . . . . . . . . 1 1 . . . . 1 . . 1 Network Hub 1 | . . . . . . . . . . . . . . . . . . . . . 1 . . . . . . . . . Energy Cycler 1 | . . . . . . . . . . . . . . . . . . 1 . . . . . . . . . . . . Machines Sabotaged . | . . . . . . . . . . . . . . . . . . . . . . . . . . . . . . . Garrisons Compromised . | . . . . . . . . . . . . . . . . . . . . . . . . . . . . . . . Overloaded Fab Kills . | . . . . . . . . . . . . . . . . . . . . . . . . . . . . . . . Fab Network Shutdowns 1 | . . . . . . . . . . . . . . . . . . . . . . 1 . . . . . . . . Hacking | -11 -10 -10 -10 -9 -8 -7 -7 -7 -7 -6 -6 -6 -6 -6 -6 -5 -5 -5 -5 -5 -5 -4 -4 -4 -4 -3 -3 -3 -3 -2 --------- Run | Scr Mat Min Exi Min Mat Fac Low Low Dat Pro Fac Low Low Zio Dee Pro Fac Ext Cet Arc Hub Fac Upp Upp Zhi Pro Res Arm Lab Res Machines Accessed 94 | . 5 . 2 1 3 18 . 1 4 . 9 1 . . . 1 4 3 . 1 10 12 . . 2 . 6 8 2 1 Terminals 50 | . 5 . . . 1 7 . . . . 5 . . . . 1 3 3 . . 9 6 . . . . 5 5 . . Fabricators 8 | . . . . . . 4 . . . . 1 . . . . . . . . . . 1 . . . . . 2 . . Repair Stations 6 | . . . . . 1 . . . . . 2 . . . . . . . . . . 2 . . . . . 1 . . Recycling Units 2 | . . . . . . 2 . . . . . . . . . . . . . . . . . . . . . . . . Scanalyzers 6 | . . . . . 1 2 . . . . 1 . . . . . . . . . . 2 . . . . . . . . Garrison Access 8 | . . . . . . 3 . . . . . . . . . . 1 . . . 1 1 . . . . 1 . . 1 Total Hacks 307 | . 11 . 2 1 11 41 . 1 28 . 26 1 . . . 2 6 12 . 25 27 44 . . 5 . 21 22 19 2 Successful 221 | . 7 . 2 1 10 24 . 1 28 . 18 1 . . . 2 2 8 . 25 15 31 . . 5 . 10 11 19 1 Failed 86 | . 4 . . . 1 17 . . . . 8 . . . . . 4 4 . . 12 13 . . . . 11 11 . 1 Catastrophic 16 | . 1 . . . . 2 . . . . 1 . . . . . 2 1 . . 3 4 . . . . 1 1 . . Database Lockouts . | . . . . . . . . . . . . . . . . . . . . . . . . . . . . . . . Manual 115 | . 9 . 1 . 1 14 . . . . 13 . . . . . 4 8 1 . 22 19 . . . . 15 6 2 . Terminals 142 | . 11 . . . 3 16 . . . . 14 . . . . 2 5 12 . . 26 24 . . . . 16 13 . . Fabricators 19 | . . . . . . 8 . . . . 1 . . . . . . . . . . 4 . . . . . 6 . . Repair Stations 18 | . . . . . 2 . . . . . 9 . . . . . . . . . . 4 . . . . . 3 . . Recycling Units 4 | . . . . . . 4 . . . . . . . . . . . . . . . . . . . . . . . . Scanalyzers 28 | . . . . . 6 9 . . . . 2 . . . . . . . . . . 11 . . . . . . . . Garrison Access 14 | . . . . . . 4 . . . . . . . . . . 1 . . . 1 1 . . . . 5 . . 2 Terminal Hacks 114 | . 3 . 2 1 1 2 . 1 28 . 2 1 . . . 2 1 6 . 25 4 5 . . 5 . 2 4 19 . Record 68 | . . . 1 . . . . . 11 . 1 . . . . 2 . . . 25 . 1 . . 5 . 1 2 19 . Part Schematic 10 | . . . . . . . . . 10 . . . . . . . . . . . . . . . . . . . . . Robot Schematic 4 | . . . . . . . . . 4 . . . . . . . . . . . . . . . . . . . . . Robot Analysis 3 | . 1 . . . . . . . . . . . . . . . 1 . . . 1 . . . . . . . . . Prototype ID Bank 6 | . 1 . . . . 1 . . 3 . . . . . . . . . . . . 1 . . . . . . . . Open Door 3 | . . . . 1 . . . 1 . . . 1 . . . . . . . . . . . . . . . . . . Level Access Points 1 | . . . . . . . . . . . . . . . . . . . . . . . . . . . . 1 . . Branch Access Points 4 | . . . . . 1 . . . . . 1 . . . . . . . . . . 1 . . . . 1 . . . Terminal Index 2 | . . . . . . . . . . . . . . . . . . . . . 1 1 . . . . . . . . Alert Level 2 | . . . . . . . . . . . . . . . . . . 2 . . . . . . . . . . . . Unreport Threat 3 | . . . . . . . . . . . . . . . . . . 3 . . . . . . . . . . . . Locate Traps 2 | . 1 . . . . . . . . . . . . . . . . 1 . . . . . . . . . . . . Recall Extermination 1 | . . . . . . . . . . . . . . . . . . . . . . . . . . . . 1 . . Zone Layout 4 | . . . . . . 1 . . . . . . . . . . . . . . 2 1 . . . . . . . . EX-Prototype ID Bank 1 | . . . 1 . . . . . . . . . . . . . . . . . . . . . . . . . . . Fabricator Hacks 15 | . . . . . . 8 . . . . 1 . . . . . . . . . . 3 . . . . . 3 . . Network Status 1 | . . . . . . . . . . . . . . . . . . . . . . 1 . . . . . . . . Load Schematic 6 | . . . . . . 4 . . . . . . . . . . . . . . . 1 . . . . . 1 . . Build 8 | . . . . . . 4 . . . . 1 . . . . . . . . . . 1 . . . . . 2 . . Repair Station Hacks 14 | . . . . . 2 . . . . . 7 . . . . . . . . . . 3 . . . . . 2 . . Scan Component 8 | . . . . . 1 . . . . . 4 . . . . . . . . . . 2 . . . . . 1 . . Repair 6 | . . . . . 1 . . . . . 3 . . . . . . . . . . 1 . . . . . 1 . . Recycling Unit Hacks 1 | . . . . . . 1 . . . . . . . . . . . . . . . . . . . . . . . . Report Inventory 1 | . . . . . . 1 . . . . . . . . . . . . . . . . . . . . . . . . Scanalyzer 26 | . . . . . 6 7 . . . . 2 . . . . . . . . . . 11 . . . . . . . . Insert Component 14 | . . . . . 3 4 . . . . 2 . . . . . . . . . . 5 . . . . . . . . Analyze 12 | . . . . . 3 3 . . . . . . . . . . . . . . . 6 . . . . . . . . Garrison Access Hacks 7 | . . . . . . 3 . . . . . . . . . . . . . . 1 1 . . . . 1 . . 1 Seal Access 7 | . . . . . . 3 . . . . . . . . . . . . . . 1 1 . . . . 1 . . 1 Unauthorized Hacks 44 | . 4 . . . 1 3 . . . . 6 . . . . . 1 2 . . 10 8 . . . . 7 2 . . Terminals 42 | . 4 . . . 1 2 . . . . 6 . . . . . 1 2 . . 10 7 . . . . 7 2 . . Track 1 | . . . . . . . . . . . . . . . . . . . . . . 1 . . . . . . . . Assimilate 8 | . . . . . . . . . . . 1 . . . . . . . . . 3 1 . . . . 2 1 . . Botnet 30 | . 4 . . . 1 2 . . . . 5 . . . . . 1 2 . . 6 4 . . . . 4 1 . . Operators 3 | . . . . . . . . . . . . . . . . . . . . . 1 1 . . . . 1 . . . Fabricators 1 | . . . . . . . . . . . . . . . . . . . . . . 1 . . . . . . . . Prioritize 1 | . . . . . . . . . . . . . . . . . . . . . . 1 . . . . . . . . Repair Stations . | . . . . . . . . . . . . . . . . . . . . . . . . . . . . . . . Recycling Units 1 | . . . . . . 1 . . . . . . . . . . . . . . . . . . . . . . . . Mask 1 | . . . . . . 1 . . . . . . . . . . . . . . . . . . . . . . . . Scanalyzers . | . . . . . . . . . . . . . . . . . . . . . . . . . . . . . . . Garrison Access . | . . . . . . . . . . . . . . . . . . . . . . . . . . . . . . . Data Cores Recovered . | . . . . . . . . . . . . . . . . . . . . . . . . . . . . . . . Used . | . . . . . . . . . . . . . . . . . . . . . . . . . . . . . . . Hacking Detections 61 | . 4 . . . 1 12 . . . . 8 . . . . . 4 2 . . 9 9 . . . . 4 7 . 1 Full Trace Events 4 | . 1 . . . 1 1 . . . . . . . . . . . 1 . . . . . . . . . . . . Feedback Events . | . . . . . . . . . . . . . . . . . . . . . . . . . . . . . . . Feedback Blocked . | . . . . . . . . . . . . . . . . . . . . . . . . . . . . . . . Robot Schematics Acquired 4 | . . . . . . . . . 4 . . . . . . . . . . . . . . . . . . . . . Robots Built . | . . . . . . . . . . . . . . . . . . . . . . . . . . . . . . . Matter . | . . . . . . . . . . . . . . . . . . . . . . . . . . . . . . . Time . | . . . . . . . . . . . . . . . . . . . . . . . . . . . . . . . Total Robot Build Rating . | . . . . . . . . . . . . . . . . . . . . . . . . . . . . . . . Part Schematics Acquired 21 | . . . . . 3 3 . . 10 . . . . . . . . . . . . 5 . . . . . . . . Parts Built 12 | . . . . . . 8 . . . . 1 . . . . . . . . . . 1 . . . . . 2 . . Matter 1692 | . . . . . . 496 . . . . 256 . . . . . . . . . . 384 . . . . . 556 . . Time 663 | . . . . . . 248 . . . . 128 . . . . . . . . . . 102 . . . . . 185 . . Total Part Build Rating 50 | . . . . . . 16 . . . . 8 . . . . . . . . . . 8 . . . . . 18 . . Parts Repaired 6 | . . . . . 1 . . . . . 3 . . . . . . . . . . 1 . . . . . 1 . . Time 199 | . . . . . 32 . . . . . 86 . . . . . . . . . . 37 . . . . . 44 . . Parts Recycled . | . . . . . . . . . . . . . . . . . . . . . . . . . . . . . . . Recycled Matter . | . . . . . . . . . . . . . . . . . . . . . . . . . . . . . . . Retrieved Matter . | . . . . . . . . . . . . . . . . . . . . . . . . . . . . . . . Retrieved Components . | . . . . . . . . . . . . . . . . . . . . . . . . . . . . . . . Parts Scanalyzed 11 | . . . . . 3 3 . . . . . . . . . . . . . . . 5 . . . . . . . . Part Schematics Acquired 11 | . . . . . 3 3 . . . . . . . . . . . . . . . 5 . . . . . . . . Parts Damaged 1 | . . . . . . . . . . . . . . . . . . . . . . 1 . . . . . . . . Bothacking | -11 -10 -10 -10 -9 -8 -7 -7 -7 -7 -6 -6 -6 -6 -6 -6 -5 -5 -5 -5 -5 -5 -4 -4 -4 -4 -3 -3 -3 -3 -2 ------------ Run | Scr Mat Min Exi Min Mat Fac Low Low Dat Pro Fac Low Low Zio Dee Pro Fac Ext Cet Arc Hub Fac Upp Upp Zhi Pro Res Arm Lab Res Used RIF Installer . | . . . . . . . . . . . . . . . . . . . . . . . . . . . . . . . Robots Hacked . | . . . . . . . . . . . . . . . . . . . . . . . . . . . . . . . Non-combat . | . . . . . . . . . . . . . . . . . . . . . . . . . . . . . . . Combat . | . . . . . . . . . . . . . . . . . . . . . . . . . . . . . . . Robot Hacks Applied . | . . . . . . . . . . . . . . . . . . . . . . . . . . . . . . . Relay Couplers Released 4 | . . . . . . 4 . . . . . . . . . . . . . . . . . . . . . . . . Machine Destruction 4 | . . . . . . 4 . . . . . . . . . . . . . . . . . . . . . . . . Robots Rewired 16 | . . . . . . . . . . . . 1 . . . . . 11 . . . . . . . . . 4 . . Allies Hacked 2 | . . . . . . . . . . . . . . . . . . . . . 1 . . . . . . 1 . . Hacks Repelled . | . . . . . . . . . . . . . . . . . . . . . . . . . . . . . . . Allies | -11 -10 -10 -10 -9 -8 -7 -7 -7 -7 -6 -6 -6 -6 -6 -6 -5 -5 -5 -5 -5 -5 -4 -4 -4 -4 -3 -3 -3 -3 -2 -------- Run | Scr Mat Min Exi Min Mat Fac Low Low Dat Pro Fac Low Low Zio Dee Pro Fac Ext Cet Arc Hub Fac Upp Upp Zhi Pro Res Arm Lab Res Total Allies 52 | . . 3 . . . . . . . 1 1 1 . 4 1 . . 25 5 . 3 1 . . . . 2 5 . . Largest Group 18 | . . 3 2 . . . . . . 1 2 2 1 4 2 1 . 18 18 17 3 2 . . . . 1 2 . . Highest-Rated Group 923 | . . 77 46 . . . . . . 94 120 113 29 149 154 109 . 628 923 923 62 52 . . . . 44 97 . . Highest-Rated Ally 149 | . . 31 31 . . . . . . 94 94 87 29 39 118 109 . 149 143 143 26 26 . . . . 44 56 . . Total Orders 7 | . . . . . . . . . . . . . 1 . . . . . 4 . . . . . . . . 2 . . STAY 5 | . . . . . . . . . . . . . 1 . . . . . 3 . . . . . . . . 1 . . FOLLOW 2 | . . . . . . . . . . . . . . . . . . . 1 . . . . . . . . 1 . . Ally Attacks 356 | . . 11 . . . . . . . 7 20 . 3 . 55 . . 153 59 32 . . . . . . . 16 . . Total Damage 11438 | . . 144 . . . . . . . 256 1243 . 55 . 3464 . . 3337 1284 1094 . . . . . . . 561 . . Kills 78 | . . 3 . . . . . . . 3 10 . . . 15 . . 27 12 7 . . . . . . . 1 . . Allies Corrupted 2 | . . . . . . . . . . . . . . . . . . . . . . . . . . . . 2 . . Allies Melted . | . . . . . . . . . . . . . . . . . . . . . . . . . . . . . . . Intel | -11 -10 -10 -10 -9 -8 -7 -7 -7 -7 -6 -6 -6 -6 -6 -6 -5 -5 -5 -5 -5 -5 -4 -4 -4 -4 -3 -3 -3 -3 -2 ------- Run | Scr Mat Min Exi Min Mat Fac Low Low Dat Pro Fac Low Low Zio Dee Pro Fac Ext Cet Arc Hub Fac Upp Upp Zhi Pro Res Arm Lab Res Robot Analysis Total 3 | . 1 . . . . . . . . . . . . . . . 1 . . . 1 . . . . . . . . . Derelict Logs Recovered 9 | . . 2 . . . . 2 . . 1 . 1 . 2 . . . . . . . . . 1 . . . . . . Drone Launches . | . . . . . . . . . . . . . . . . . . . . . . . . . . . . . . . Drone Recoveries . | . . . . . . . . . . . . . . . . . . . . . . . . . . . . . . . Exploration | -11 -10 -10 -10 -9 -8 -7 -7 -7 -7 -6 -6 -6 -6 -6 -6 -5 -5 -5 -5 -5 -5 -4 -4 -4 -4 -3 -3 -3 -3 -2 ------------- Run | Scr Mat Min Exi Min Mat Fac Low Low Dat Pro Fac Low Low Zio Dee Pro Fac Ext Cet Arc Hub Fac Upp Upp Zhi Pro Res Arm Lab Res Turns Passed 21662 | 46 783 489 352 255 1239 2587 490 305 89 604 905 456 424 1203 1190 184 484 1223 232 111 557 1001 294 697 183 83 2413 2013 197 573 Spaces Moved 19897 | 34 590 385 322 164 655 1756 344 205 78 505 618 325 346 1060 1440 367 846 1074 226 200 885 1596 410 362 326 290 2466 1177 198 647 Core 4 | 1 . . . . . . . . . . . . . . . . . . . . . . . . . . . . . 3 Treads . | . . . . . . . . . . . . . . . . . . . . . . . . . . . . . . . Legs . | . . . . . . . . . . . . . . . . . . . . . . . . . . . . . . . Wheels 7535 | 33 590 385 322 164 655 1756 344 205 78 505 618 325 346 1060 149 . . . . . . . . . . . . . . . Hover 12357 | . . . . . . . . . . . . . . . 1291 367 846 1074 226 200 885 1596 410 362 326 290 2466 1177 198 643 Flight 1 | . . . . . . . . . . . . . . . . . . . . . . . . . . . . . . 1 Fastest Speed 14 | 50 100 100 100 105 113 105 110 110 110 110 110 102 102 102 44 44 20 40 40 20 20 20 21 21 38 20 20 14 30 16 Average Speed 66 | 98 100 100 107 107 120 110 110 110 110 110 110 108 102 102 60 45 35 40 40 33 38 38 42 41 40 24 45 39 30 36 Slowest Speed 285 | 100 100 110 110 110 123 123 110 110 110 110 112 110 102 102 285 98 105 40 40 44 40 100 43 43 90 38 91 80 36 160 Overloaded Moves 32 | . . . . . . . . . . . . . . . . . . . . . . . . . . . 6 5 . 21 Propulsion Burnouts . | . . . . . . . . . . . . . . . . . . . . . . . . . . . . . . . Robots Hopped . | . . . . . . . . . . . . . . . . . . . . . . . . . . . . . . . Cave-ins Triggered 1 | . . . . . . . . . . . . . . . . . . . . . . . . . . . 1 . . . Teleports 1 | . . . . . . . . . . . . . . . . . . . . . . . . . . . . 1 . . Exploration Rate (%) 57 | 5 94 82 70 36 49 49 61 41 68 76 15 53 60 90 82 58 23 82 68 99 68 36 55 40 61 60 50 39 99 12 Regions Visited 30 Branch Regions 22 Pre-discovered Areas 6 | . . 1 1 . . . . . 1 . . . . . . . . . . . . . . . 3 . . . . . Known Exits Taken 21 | . . . . . 1 1 1 . . 1 1 1 . 1 . 1 1 1 1 1 1 1 1 1 1 1 1 1 1 . Unknown Exits Taken 9 | 1 1 1 1 1 . . . 1 1 . . . 1 . 1 . . . . . . . . . . . . . . . Scrap Searched 20 | . . 1 . 1 . . 1 1 . 3 . 3 1 3 . 1 . . . . . . 2 . . 3 . . . . Spaces Dug 135 | . . . . 9 . . 3 . . . 3 3 . . . 3 18 . . . 9 21 . 13 . . 40 5 . 8 Terrain Destroyed 604 | . 13 7 . 15 7 113 36 47 . 20 9 43 . . 7 3 18 16 . . 163 21 . 13 . . 40 5 . 8 Melee 93 | . . . . . . . . . . . . . . . . 3 13 . . . 6 16 . 5 . . 37 5 . 8 Projectile 56 | . . . . . . 2 3 2 . 2 9 6 . . 7 . 5 . . . 4 5 . 8 . . 3 . . . AOE 455 | . 13 7 . 15 7 111 33 45 . 18 . 37 . . . . . 16 . . 153 . . . . . . . . . Terrain Rammed . | . . . . . . . . . . . . . . . . . . . . . . . . . . . . . . . Walls Destroyed . | . . . . . . . . . . . . . . . . . . . . . . . . . . . . . . . Machines Disabled . | . . . . . . . . . . . . . . . . . . . . . . . . . . . . . . . Actions | -11 -10 -10 -10 -9 -8 -7 -7 -7 -7 -6 -6 -6 -6 -6 -6 -5 -5 -5 -5 -5 -5 -4 -4 -4 -4 -3 -3 -3 -3 -2 --------- Run | Scr Mat Min Exi Min Mat Fac Low Low Dat Pro Fac Low Low Zio Dee Pro Fac Ext Cet Arc Hub Fac Upp Upp Zhi Pro Res Arm Lab Res Total 26968 | 44 710 452 326 223 945 2244 417 264 81 545 808 402 409 1146 1734 380 1001 1842 364 235 1066 1906 529 882 365 305 3536 2659 271 877 Wait 5117 | . 43 23 . 26 103 236 43 25 . 30 129 42 60 42 151 10 94 687 112 26 144 189 117 501 . 4 844 1353 1 82 Move 19867 | 33 589 384 321 163 654 1755 343 204 77 504 617 324 345 1059 1439 366 845 1073 225 199 884 1595 409 361 325 289 2465 1176 197 647 Hop . | . . . . . . . . . . . . . . . . . . . . . . . . . . . . . . . Pick Up 233 | 5 14 10 1 5 34 35 1 6 . 1 14 2 . 8 20 . 4 1 5 . 2 9 1 1 7 6 13 9 11 8 Fast Attach 114 | 5 6 . . 2 9 17 . 2 2 . 3 1 . 1 15 . 6 1 2 1 . 6 . . 5 . 14 2 7 7 Attach 118 | 1 2 1 . . 8 20 1 2 . . 2 3 . 1 12 . 4 . . 1 2 9 . 1 1 . 11 6 6 24 Detach 44 | . . . . 1 3 3 . . . . . . . 2 9 . 1 . 1 . 1 3 . . . . 4 3 5 8 Swap 216 | . 6 4 2 5 13 28 10 4 . 5 8 3 . 4 21 1 10 3 4 2 3 30 1 1 6 . 22 18 1 1 Drop 302 | . 11 9 1 9 32 54 1 7 2 1 14 3 . 7 44 . 4 . 8 . . 15 1 . 13 6 19 17 11 13 Fire 466 | . 39 21 1 12 88 95 18 14 . 4 21 16 4 22 23 . 5 19 6 2 4 6 . 4 . . 8 1 . 33 Melee 373 | . . . . . . . . . . . . . . . . 3 15 3 1 4 26 44 . 13 8 . 136 34 32 54 Ram 2 | . . . . . 1 1 . . . . . . . . . . . . . . . . . . . . . . . . Kick . | . . . . . . . . . . . . . . . . . . . . . . . . . . . . . . . Crush . | . . . . . . . . . . . . . . . . . . . . . . . . . . . . . . . Escape Stasis 43 | . . . . . . . . . . . . . . . . . 13 4 . . . . . . . . . 26 . . Rewire 73 | . . . . . . . . . . . . 8 . . . . . 51 . . . . . . . . . 14 . . Trap . | . . . . . . . . . . . . . . . . . . . . . . . . . . . . . . . Miscellaneous . | . . . . . . . . . . . . . . . . . . . . . . . . . . . . . . . Route ------- -11/Scrapyard -10/Materials (discovered 4 exits: [*Mat x3] / [*Min]) -10/Mines (discovered 3 exits: [*Mat x2] / *Exi) -10/Exiles -9/Mines -8/Materials (discovered 3 exits: *Fac x3) -7/Factory (discovered 4 exits: *Fac x2 / *Low x2) -7/Lower Caves -7/Lower Caves -7/Data Miner -6/Proximity Caves -6/Factory (discovered 3 exits: Fac / *Low x2) -6/Lower Caves -6/Lower Caves (discovered 2 exits: *Fac / [*Zio]) -6/Zion (discovered 2 exits: *Dee / [*Pro]) -6/Deep Caves -5/Proximity Caves -5/Factory (discovered 2 exits: *Ext x2) -5/Extension (discovered 2 exits: *Fac / *Cet) -5/Cetus (discovered 2 exits: *Fac / *Arc) -5/Archives (discovered 3 exits: *Fac / *Hub x2) -5/Hub_04(d) (discovered 3 exits: *Fac x3) -4/Factory (discovered 2 exits: *Upp x2) -4/Upper Caves -4/Upper Caves -4/Zhirov -3/Proximity Caves -3/Research (discovered 3 exits: *Arm / Tes x2) -3/Armory (discovered 3 exits: Res x2 / *Lab) -3/Lab -2/Research History --------- Turn | Location | Event 10 | -11/Scrapyard | Discovered new exit (range 16) 47 | -11/Scrapyard | Entered Materials 191 | -10/Materials | Discovered new exit (range 15) 268 | -10/Materials | Discovered new exit (range 8) 300 | -10/Materials | Build established: Mutant 525 | -10/Materials | Discovered new exit (range 15) 551 | -10/Materials | Discovered new exit (range 16) 830 | -10/Materials | Entered Mines 839 | -10/Mines | Escorted by a lone wolf Derelict 859 | -10/Mines | Learned location of Storage (-7) 882 | -10/Mines | Learned Materials interactive machine intel 893 | -10/Mines | Found a damaged Exp. Sensor Array with a note attached 895 | -10/Mines | Found Prototype Device 1060 | -10/Mines | Discovered new exit (range 8) 1061 | -10/Mines | Learned location of 2 exits from Materials 1103 | -10/Mines | Discovered new exit (range 12) 1106 | -10/Mines | Found a hidden stash of uninstalled traps 1301 | -10/Mines | Deemed a non-threat by the Exiles lab entrance 1302 | -10/Mines | Discovered new exit (range 5) 1319 | -10/Mines | Entered Exiles 1319 | -10/Exiles | Accompanied by 2 allies 1343 | -10/Exiles | Met 8R-AWN 1349 | -10/Exiles | Led the pair of lost Derelicts to a safe place 1360 | -10/Exiles | Met EX-HEX 1427 | -10/Exiles | Met EX-DEC 1447 | -10/Exiles | Learned location of Zion (-6) 1521 | -10/Exiles | Met EX-BIN 1536 | -10/Exiles | Aligned with FarCom system 1537 | -10/Exiles | Given EX-Vault access code 1563 | -10/Exiles | Opened EX-Vault 1588 | -10/Exiles | Warned to stay clear of 0b10 Research branches 1644 | -10/Exiles | Attacked by the Exiles 1662 | -10/Exiles | Discovered new exit (range 10) 1671 | -10/Exiles | Entered Mines 1677 | -9/Mines | Met a Derelict shopkeep closing up shop 1801 | -9/Mines | Discovered new exit (range 5) 1869 | -9/Mines | Met a Derelict who couldn't figure out how to use a Trap Extractor 1926 | -9/Mines | Entered Materials 1926 | -8/Materials | Evolved 4 slots: Propulsion x1, Utility x3 1927 | -8/Materials | Identified exit to Factory 1928 | -8/Materials | Loaded intel: 19 interactive machine locations 1928 | -8/Materials | Identified Exp. Sensor Array 2237 | -8/Materials | Build established: Hauler-Mutant 2649 | -8/Materials | Repaired Arm. Wheel 2791 | -8/Materials | Discovered exit to Factory (range 9) 3165 | -8/Materials | Entered Factory 3165 | -7/Factory | Evolved 2 slots: Propulsion x1, Utility x1 3192 | -7/Factory | Garrison activated, responded to threat 3879 | -7/Factory | Fabricated Arm. Wheel (x2) 3991 | -7/Factory | Discovered new exit (range 13) 4365 | -7/Factory | First assault squad dispatched 4413 | -7/Factory | Garrison activated, responded to threat 4590 | -7/Factory | Fabricated Arm. Wheel? 4644 | -7/Factory | Discovered new exit (range 12) 4970 | -7/Factory | Fabricated Arm. Wheel (x2) 5062 | -7/Factory | Lost 3 parts (1n1u1w) 5300 | -7/Factory | Discovered new exit (range 12) 5333 | -7/Factory | Fabricated Arm. Wheel? 5438 | -7/Factory | Identified exit to Factory 5683 | -7/Factory | Discovered new exit (range 11) 5740 | -7/Factory | Identified exit to Lower Caves 5752 | -7/Factory | Entered Lower Caves 5753 | -7/Lower Caves | Encountered a Warlord checkpoint 5912 | -7/Lower Caves | Identified exit to Lower Caves 5959 | -7/Lower Caves | Attracted the attention of an 0b10 checkpoint 5983 | -7/Lower Caves | Core integrity fell below 50% 6218 | -7/Lower Caves | Learned location of 1 exit from Factory 6242 | -7/Lower Caves | Entered another Lower Caves area 6296 | -7/Lower Caves | Attracted the attention of an 0b10 checkpoint 6531 | -7/Lower Caves | Discovered new exit (range 16) 6547 | -7/Lower Caves | Entered Data Miner 6547 | -7/Data Miner | Discovered new exit (range 6) 6569 | -7/Data Miner | Met Data Miner 6597 | -7/Data Miner | Learned location of Section 7 (-2) 6597 | -7/Data Miner | Acquired the access code to Warlord's prototype stash 6608 | -7/Data Miner | Received God Mode back door access code from Data Miner 6636 | -7/Data Miner | Entered Proximity Caves 6666 | -6/Proximity Caves | Escorted by Enhanced Grunt 6746 | -6/Proximity Caves | Learned Factory terminal intel 7218 | -6/Proximity Caves | Discovered exit to Factory (range 15) 7240 | -6/Proximity Caves | Entered Factory 7240 | -6/Factory | Accompanied by 1 ally 7240 | -6/Factory | Evolved 2 slots: Propulsion x1, Utility x1 7241 | -6/Factory | Identified exit to Factory 7242 | -6/Factory | Loaded intel: 19 terminal locations 7335 | -6/Factory | Found Prototype Processor 7345 | -6/Factory | Identified Exp. Terrain Scan Processor 7415 | -6/Factory | Repaired Arm. Wheel 7449 | -6/Factory | Repaired Arm. Wheel 7540 | -6/Factory | Repaired Broken Arm. Wheel 7651 | -6/Factory | Discovered new exit (range 4) 7793 | -6/Factory | Identified exit to Lower Caves 7904 | -6/Factory | Found Exp. Targeting Computer 7940 | -6/Factory | First assault squad dispatched 8059 | -6/Factory | Fabricated Com. HERF Cannon (x1) 8145 | -6/Factory | Entered Lower Caves 8145 | -6/Lower Caves | Accompanied by 2 allies 8154 | -6/Lower Caves | Identified exit to Lower Caves 8390 | -6/Lower Caves | Found Prototype Device 8390 | -6/Lower Caves | Identified Exp. Thermal Shield 8488 | -6/Lower Caves | Attracted the attention of an 0b10 outpost 8533 | -6/Lower Caves | Destroyed 8 combat bots 8541 | -6/Lower Caves | Lost 3 parts (1p1n1w) 8601 | -6/Lower Caves | Entered another Lower Caves area 8601 | -6/Lower Caves | Accompanied by 1 ally 8629 | -6/Lower Caves | Discovered exit to Factory (range 8) 8654 | -6/Lower Caves | Attracted the attention of an 0b10 checkpoint 8964 | -6/Lower Caves | Encountered a Warlord checkpoint 8986 | -6/Lower Caves | Discovered new exit (range 15) 9025 | -6/Lower Caves | Entered Zion 9068 | -6/Zion | Found Prototype Device 9068 | -6/Zion | Identified Phasing AFG 9146 | -6/Zion | Discovered new exit (range 15) 9402 | -6/Zion | Identified exit to Deep Caves 9502 | -6/Zion | Saw the warning signs outside the Deep Caves entrance 9606 | -6/Zion | Learned 4 Factory zone layouts 10014 | -6/Zion | Imprinted 10016 | -6/Zion | Declared Zion's savior 10228 | -6/Zion | Entered Deep Caves 10228 | -6/Deep Caves | Accompanied by 1 ally 10230 | -6/Deep Caves | Met 5H-AD0 10347 | -6/Deep Caves | Z-Facility disabled 10404 | -6/Deep Caves | Attacked by Z-Imprinter 10436 | -6/Deep Caves | Destroyed Z-Imprinter 10456 | -6/Deep Caves | Found Prototype Device 10456 | -6/Deep Caves | Identified Zio. Metafield Generator 10470 | -6/Deep Caves | Found Prototype Protection 10470 | -6/Deep Caves | Identified Zio. Weapon Casing 10472 | -6/Deep Caves | Lost 4 parts (1p1n2u) 10734 | -6/Deep Caves | Found Zio. Weapon Casing 11256 | -6/Deep Caves | Discovered new exit (range 6) 11320 | -6/Deep Caves | Found XL Autogun Array 11418 | -6/Deep Caves | Entered Proximity Caves 11418 | -5/Proximity Caves | Accompanied by 1 ally (5H-AD0) 11423 | -5/Proximity Caves | Thanked by 5H-AD0 11598 | -5/Proximity Caves | Discovered exit to Factory (range 10) 11602 | -5/Proximity Caves | Entered Factory 11602 | -5/Factory | Evolved 2 slots: Power x1, Propulsion x1 11603 | -5/Factory | Identified exit to Extension 12080 | -5/Factory | Discovered exit to Extension (range 16) 12086 | -5/Factory | Entered Extension 12115 | -5/Extension | Rescued a captive Derelict 12149 | -5/Extension | Rescued a captive Derelict 12150 | -5/Extension | Rescued a captive Derelict 12163 | -5/Extension | Rescued a captive Derelict 12167 | -5/Extension | Rescued a captive Derelict 12171 | -5/Extension | Rescued a captive Derelict 12194 | -5/Extension | Rescued A7 12203 | -5/Extension | Incoming investigation squad redirected 12624 | -5/Extension | Build established: Scavenger-Mutant 12796 | -5/Extension | Incoming investigation squad redirected 12912 | -5/Extension | Spotted B-75 Beast 12937 | -5/Extension | Allies destroyed B-75 Beast 12945 | -5/Extension | Spotted B-75 Beast 12956 | -5/Extension | Allies destroyed B-75 Beast 13007 | -5/Extension | Incoming investigation squad redirected 13019 | -5/Extension | Rescued a captive Derelict 13019 | -5/Extension | Rescued a captive Derelict 13031 | -5/Extension | Rescued a captive Derelict 13037 | -5/Extension | Rescued a captive Derelict 13147 | -5/Extension | Energy Cycler disabled 13148 | -5/Extension | Rescued a captive Derelict 13149 | -5/Extension | Rescued a captive Derelict 13151 | -5/Extension | Rescued a captive Derelict 13249 | -5/Extension | Discovered new exit (range 10) 13249 | -5/Extension | Discovered new exit (range 6) 13256 | -5/Extension | Identified exit to Cetus 13309 | -5/Extension | Entered Cetus 13309 | -5/Cetus | Accompanied by 18 allies (A7) 13314 | -5/Cetus | Acquired a Cetus Manufacturing Module code from A7 13318 | -5/Cetus | Spotted Cetus Guard 13318 | -5/Cetus | Spotted Cetus Guard 13322 | -5/Cetus | Spotted Cetus Guard 13324 | -5/Cetus | Spotted Cetus Guard 13327 | -5/Cetus | Allies destroyed Cetus Guard 13329 | -5/Cetus | Allies destroyed Cetus Guard 13336 | -5/Cetus | Allies destroyed Cetus Guard 13342 | -5/Cetus | Allies destroyed Cetus Guard 13358 | -5/Cetus | Started Cetus Manufacturing Module 13383 | -5/Cetus | Manufactured an Enhanced Grunt 13397 | -5/Cetus | Build established: Commander-Mutant 13397 | -5/Cetus | Escorted A7 to Cetus Mainframe 13408 | -5/Cetus | Manufactured an Enhanced Grunt 13420 | -5/Cetus | Discovered new exit (range 16) 13433 | -5/Cetus | Manufactured an Enhanced Grunt 13458 | -5/Cetus | Manufactured an Enhanced Grunt 13474 | -5/Cetus | Spotted Cetus Guard 13475 | -5/Cetus | Spotted Cetus Guard 13475 | -5/Cetus | Spotted Cetus Guard 13475 | -5/Cetus | Allies destroyed Cetus Guard 13476 | -5/Cetus | Allies destroyed Cetus Guard 13477 | -5/Cetus | Allies destroyed Cetus Guard 13481 | -5/Cetus | Discovered new exit (range 16) 13483 | -5/Cetus | Manufactured an Enhanced Grunt 13485 | -5/Cetus | Scared off Revision 17 13505 | -5/Cetus | Identified exit to Archives 13541 | -5/Cetus | Entered Archives 13541 | -5/Archives | Accompanied by 17 allies (A7) 13546 | -5/Archives | Received a hacking code to weaken MAIN.C 13548 | -5/Archives | Met Zhirov 13549 | -5/Archives | Unable to access archive contents 13552 | -5/Archives | Unable to access archive contents 13554 | -5/Archives | Reinforcements dispatched to Archives 13555 | -5/Archives | Read partially decrypted archive contents 13557 | -5/Archives | Discovered new exit (range 14) 13568 | -5/Archives | Unable to access archive contents 13575 | -5/Archives | Identified exit to Hub_04(d) 13588 | -5/Archives | Discovered exit to Hub_04(d) (range 14) 13599 | -5/Archives | Reinforcements dispatched to Archives 13601 | -5/Archives | Zhirov warped through subspace 13619 | -5/Archives | Zhirov detonated Archives 13630 | -5/Archives | Discovered new exit (range 16) 13652 | -5/Archives | Entered Hub_04(d) 13924 | -5/Hub_04(d) | Build established: Scavenger-Mutant 13963 | -5/Hub_04(d) | Discovered new exit (range 15) 13966 | -5/Hub_04(d) | Discovered new exit (range 20) 14151 | -5/Hub_04(d) | Discovered new exit (range 14) 14176 | -5/Hub_04(d) | Network Hub disabled 14203 | -5/Hub_04(d) | Identified exit to Factory 14209 | -5/Hub_04(d) | Entered Factory 14209 | -4/Factory | Accompanied by 1 ally 14209 | -4/Factory | Evolved 2 slots: Utility x2 14253 | -4/Factory | Identified exit to Upper Caves 14317 | -4/Factory | Repaired Adv. Reaction Control System 15006 | -4/Factory | Fabricated Exp. Transmission Jammer? 15011 | -4/Factory | Local fabrication network quarantined 15185 | -4/Factory | Spotted B-86 Titan 15210 | -4/Factory | Entered Upper Caves 15322 | -4/Upper Caves | Build established: Hauler-Mutant 15494 | -4/Upper Caves | Discovered new exit (range 8) 15504 | -4/Upper Caves | Identified exit to Upper Caves 15504 | -4/Upper Caves | Entered another Upper Caves area 15506 | -4/Upper Caves | Identified exit to Zhirov 15813 | -4/Upper Caves | Build established: Scavenger-Mutant 16201 | -4/Upper Caves | Entered Zhirov 16201 | -4/Zhirov | Discovered new exit (range 3) 16217 | -4/Zhirov | Learned location of Quarantine (-2) 16217 | -4/Zhirov | Learned location of Testing (-3) 16217 | -4/Zhirov | Learned location of Command (-1) 16229 | -4/Zhirov | Found Alien Artifact 16229 | -4/Zhirov | Identified Integrated Dissipator 16229 | -4/Zhirov | Installed Integrated Dissipator, increased core heat dissipation (+20) 16270 | -4/Zhirov | Found Alien Artifact 16320 | -4/Zhirov | Identified exit to Proximity Caves 16384 | -4/Zhirov | Entered Proximity Caves 16411 | -3/Proximity Caves | Attracted the attention of an 0b10 outpost 16465 | -3/Proximity Caves | Discovered new exit (range 8) 16467 | -3/Proximity Caves | Identified exit to Research 16467 | -3/Proximity Caves | Entered Research 16467 | -3/Research | Evolved 2 slots: Weapon x2 16703 | -3/Research | Build established: Hauler-Mutant 17145 | -3/Research | Build established: Scavenger-Mutant 17483 | -3/Research | Build established: Hauler-Mutant 17957 | -3/Research | Lost 3 parts (1p1n1u) 17973 | -3/Research | Found Powered Armor 18236 | -3/Research | Build established: Scavenger-Mutant 18367 | -3/Research | Crushed by falling debris 18367 | -3/Research | System corruption reached 10% 18398 | -3/Research | Lost 4 parts (2n2w) 18782 | -3/Research | Identified exit to Armory 18782 | -3/Research | Identified exit to Testing 18880 | -3/Research | Entered Armory 18903 | -3/Armory | Build established: Hauler-Mutant 18986 | -3/Armory | Incoming investigation squad redirected 19028 | -3/Armory | Repaired Cld. Gravmag System 19156 | -3/Armory | Identified exit to Research 19187 | -3/Armory | Fabricated Adv. Phase Shifter (x1) 19297 | -3/Armory | P-80 Master assimilated allied Veteran 8a 19734 | -3/Armory | Fabricated Adv. Cloaking Device (x1) 19736 | -3/Armory | Build established: Hauler-Sprinter 19754 | -3/Armory | Identified Transdimensional Reconstructor 19754 | -3/Armory | Warped through subspace to slip node 19754 | -3/Armory | Discovered new exit (range 1) 19754 | -3/Armory | Identified exit to Lab 20042 | -3/Armory | Build established: Hauler-Mutant 20893 | -3/Armory | Entered Lab 20893 | -3/Lab | Discovered exit to Research (range 9) 20897 | -3/Lab | Unable to decrypt terminal 20897 | -3/Lab | Opened the door to a hidden lab 20898 | -3/Lab | Gained access to the hidden lab's interior 20904 | -3/Lab | Detected by scanners 20906 | -3/Lab | Found Alien Artifact 20912 | -3/Lab | Found Transdimensional Reconstructor 20929 | -3/Lab | Found Alien Artifact 20932 | -3/Lab | Confronted by A5 21008 | -3/Lab | Destroyed A5 21023 | -3/Lab | Found Prototype Hackware 21028 | -3/Lab | Found Alien Artifact 21034 | -3/Lab | Found Prototype Device 21034 | -3/Lab | Identified AEGIS Remote Shield 21037 | -3/Lab | Found Prototype Hackware 21039 | -3/Lab | Found Prototype Energy Cannon 21039 | -3/Lab | Identified Warp Cannon 21042 | -3/Lab | Found Prototype Energy Gun 21042 | -3/Lab | Identified Hyp. EM Gauss Rifle 21048 | -3/Lab | Unable to decrypt terminal 21052 | -3/Lab | Found Prototype Special Weapon 21052 | -3/Lab | Identified Gui. Remote Datajack 21060 | -3/Lab | Unable to decrypt terminal 21068 | -3/Lab | Unable to decrypt terminal 21090 | -3/Lab | Entered Research 21090 | -2/Research | Evolved 2 slots: Utility x2 21185 | -2/Research | Lost 3 parts (1p2u) 21491 | -2/Research | Intercept squad dispatched 21499 | -2/Research | Spotted Tracker 21500 | -2/Research | Spotted Tracker 21507 | -2/Research | Destroyed Tracker 21514 | -2/Research | Destroyed Tracker 21532 | -2/Research | Spotted Combat Programmer 21551 | -2/Research | Destroyed 8 combat bots 21563 | -2/Research | Destroyed Combat Programmer 21606 | -2/Research | Core integrity fell below 50% 21617 | -2/Research | Spotted Combat Programmer 21618 | -2/Research | Lost 17 parts (2p5n7u3w) 21618 | -2/Research | Found Prototype Device 21618 | -2/Research | Identified Exp. Phase Shifter 21621 | -2/Research | Found Enh. Force Lance 21637 | -2/Research | System corruption reached 10% 21649 | -2/Research | Core integrity fell below 20% 21651 | -2/Research | Identified Exp. Hacking Suite 21652 | -2/Research | Identified Quantum Router 21663 | -2/Research | Destroyed by H-88 Terminator with KE Penetrator Last Messages --------------- 21651_ Slug penetrates Wall. 21652_ Identified Quantum Router. 21653_ Penetrated by EMDS Slug. 21653_ Enh. Force Lance destroyed. 21654_ Dropped Phase Gun. 21654_ Slug penetrates Wall. 21655_ Dropped Warp Cannon. 21655_ Dropped Zio. Metafield Generator. 21656_ Dropped Gui. Remote Datajack. 21656_ Dropped System Restoration Module. 21656_ Slug penetrates Wall. 21656_ Penetrated by EMDS Slug. 21657_ Dropped Exp. Energy Well. 21657_ Dropped Hcp. Storage Unit. 21658_ Penetrated by Slug. 21661_ Acquired Xenon Bombardment Thruster. 21661_ Slug penetrates H-88 Terminator. 21661_ Penetrated by EMDS Slug. 21661_ Enh. Optical Array destroyed. 21663_ Penetrated by Slug. Map ----- +----------------------------------------------------+ | ?????????????????????????????????????????????????? | | ??????????????????????##############?????????????? | | ?????????????????????## #?????????????? | | ?????????????????????#" =#?????????????? | | ?????????????????????## ###########???? | | ??????????????????????# """ """ ## #???? | | ??????????????????????# """ """ ## #???? | | ??????????????????????# """ """ ## """ #???? | | ??????????????????????# """ """ ## """ #???? | | ??????????????????????# """ """ ## """ #???? | | ??????????????????????# """ """ ## #???? | | ??????????????????????# """ """ "# =! #???? | | ??????????????????????# !## !| #???# | | ??????????????????????# ## | ! ###?# | | ??????????????????????##+####+###########+######## | | ???????????????????????# *! | | ???????????????????????# | | ???????????????????????# | | ???????????????????????# | | ????????????????########### " ###+############## | | ????????????????# # "%"# ?????# | | ????????????????# !!p# " # ?????# | | ????????????????# =|[=# # ????#+ | | ????????????????# ==!!!#%*= # ##### | | ????????????????# = [=!# [ # + + | | ????????????????# =@hh ! #????############# | | ????????????????# = !#%%! #????????????????# | | ????????????????# ==#%[ #????????????????# | | ????????????????########### #????????????????# | | ??????????????????????????# #????????????????# | | ??????????????????????????# #????????????????# | | ??????????????????????????# #????????????????# | | ??????????????????????????# +????????????????# | | ??????????????????????????? #????????????????# | | ??????????????????????????? #????????????????# | | ??????????????????????????? #???????########### | | ??????????????????????????? ???? | | ??????????????????????????? ???? | | ??????????????????????????? ???? | | ??????????????????????????? ??????? | | ????????????????????????????????????? ############ | | ?????????????????????????????????????????????????? | | ?????????????????????????????????????????????????? | | ?????????????????????????????????????????????????? | | ?????????????????????????????????#???????????????? | | ?????????????????????????????????# ??????????????? | | ?????????????????????????????????# ?????????????? | | ?????????????????????????????????# ????????????? | | ?????????????????????????????????# ???????????? | | ?????????????????????????????????# ############ | +----------------------------------------------------+ Best States ------------- Heat Dissipation 115 Coolant Potential 100 Energy Generation 49 Energy Capacity 1295 Matter Stores 300 Matter Capacity 300 Sight Range 22 Robot Scan Range 30 Terrain Scan Density 10 Jamming Range 22 Cloak Strength 4 Additional Mass Support 16 Armor Coverage 625 Resistance: KI 30 Resistance: TH 30 Propulsion Shielding 66 Utility Shielding 90 Weapon Shielding 100 Phase Shifting 20 Evasion (%) 74 Target Analysis 8 Overload Amplification 75 Salvage Targeting 4 Offensive Hacking 16 Defensive Hacking 25 Item Schematics ----------------- Arm. Wheel | -8/Materials | Scanalyzed Exp. Sensor Array | -8/Materials | Scanalyzed Carbon-fiber Leg | -8/Materials | Scanalyzed Hcp. Storage Unit | -7/Factory | Scanalyzed Adv. Weight Redist. System | -7/Factory | Scanalyzed Arm. Huge Wheel | -7/Factory | Scanalyzed Exp. Transmission Jammer | -7/Data Miner | Free Exp. Targeting Computer | -7/Data Miner | Free Plasma Sword | -7/Data Miner | Free Mni. Smartbomb Launcher | -7/Data Miner | Free Cloaking Device | -7/Data Miner | Free Exp. Terrain Scanner | -7/Data Miner | Free Exp. Cesium-ion Thruster | -7/Data Miner | Free Exp. Flexi-carbon Leg | -7/Data Miner | Free Lgt. Regenerative Plating | -7/Data Miner | Free Combat Drone Bay | -7/Data Miner | Free Centrium Medium Armor Plating | -4/Factory | Scanalyzed Adv. Phase Shifter | -4/Factory | Scanalyzed Exp. Heat Sink | -4/Factory | Scanalyzed Adv. Hacking Suite | -4/Factory | Scanalyzed Mic. Fission Core | -4/Factory | Scanalyzed Robot Schematics ------------------ S-27 Virus | -7/Data Miner | Free G-50 Soldier | -7/Data Miner | Free P-70 Sage | -7/Data Miner | Free I-36 Angel | -7/Data Miner | Free Fabricated ------------ Arm. Wheel | x2 | -7/Factory Arm. Wheel | x2 | -7/Factory Arm. Wheel | x2 | -7/Factory Arm. Wheel | x2 | -7/Factory Com. HERF Cannon | x1 | -6/Factory | Preloaded Exp. Transmission Jammer | x1 | -4/Factory Adv. Phase Shifter | x1 | -3/Armory Adv. Cloaking Device | x1 | -3/Armory | Preloaded Alien Tech Used ----------------- Integrated Dissipator Transdimensional Reconstructor Achievements -------------- Anyone Home? Overkill Whoosh! Challenges ------------ None Game ------ Seed GodMachineShotgun Manual? 0 Play Time 10:09:35 Cumulative 116.8 hours Start 2021.11.10 @ 10:02:34 End 2021.11.14 @ 16:26:22 Sessions 5 Manual Loads 0 Difficulty Rogue Special Mode None Game No. 21 Rogue 21 Adventurer 0 Explorer 0 Win Type - Total 5 Types 4/1/0/0/0/0/0/0/0 Lore% 66 Gallery% 61 Achievement% 54 Wizard Run 0 Options --------- ASCII 0 Keyboard 0 Movement Vi Keybinds 0 Fullscreen 1 Font 36/Smallcaps Map View 76x50 Tactical HUD 1 Map Filters NONE Filters NONE Steam 1 RUN: 1b12517b-fa0f-4bfc-a888-387bd0b6b6c8